bitfinex/quotes_BTCUSD_20250910
["timestamp","ask_amount","ask_price","bid_price","bid_amount"]
[1757465101763,0.14962873,111350.0,111340.0,1.2965107]
[1757465103197,0.14962873,111350.0,111340.0,1.10274811]
[1757465103399,0.14962873,111350.0,111340.0,1.2965107]
[1757465106459,0.14962873,111350.0,111340.0,1.25659489]
[1757465109338,0.14962873,111350.0,111340.0,1.37989489]
[1757465116285,0.16640439,111350.0,111340.0,1.37989489]
[1757465118367,0.16640452,111350.0,111340.0,1.37989489]
[1757465119256,0.16640452,111350.0,111340.0,1.22945489]
[1757465119507,0.07357706,111370.0,111360.0,0.37336029]
[1757465119737,0.05643044,111370.0,111360.0,1.10398545]
[1757465119948,0.05643044,111370.0,111360.0,0.91519286]
[1757465120909,0.10272739,111370.0,111360.0,0.91619286]
[1757465121107,0.09972739,111370.0,111360.0,0.91519286]
[1757465121318,0.09972739,111370.0,111360.0,0.95508534]
[1757465121605,0.09972739,111370.0,111360.0,0.95608534]
[1757465121829,0.10372739,111370.0,111360.0,0.95608534]
[1757465122178,0.09343582,111370.0,111360.0,0.95608534]
[1757465123618,0.09343582,111370.0,111360.0,0.68658534]
[1757465124540,0.09343582,111370.0,111360.0,0.34250275]
[1757465124736,0.22544992,111370.0,111360.0,0.42283369]
[1757465126021,0.22544992,111370.0,111360.0,0.42183369]
[1757465127140,0.10186992,111370.0,111360.0,0.42183369]
[1757465127352,0.10286992,111370.0,111360.0,0.43583158]
[1757465127566,0.10286992,111370.0,111360.0,0.42680369]
[1757465127777,0.10386992,111370.0,111360.0,0.42680369]
[1757465128227,0.10286992,111370.0,111360.0,0.42680369]
[1757465128447,0.10171992,111370.0,111360.0,0.42680369]
[1757465128853,0.10386992,111370.0,111360.0,0.42680369]
[1757465129042,0.22744992,111370.0,111360.0,0.42179369]
[1757465131447,0.23582807,111370.0,111360.0,0.42179369]
[1757465133572,0.23582807,111370.0,111360.0,0.27151369]
[1757465137269,0.23582897,111370.0,111360.0,0.27151369]
[1757465138624,0.23276897,111370.0,111360.0,0.27151369]
[1757465138803,0.23582897,111370.0,111360.0,0.27151369]
[1757465140225,0.38606897,111370.0,111360.0,0.27151369]
[1757465140785,0.38606897,111370.0,111360.0,0.1795977]
[1757465141004,0.38606897,111370.0,111350.0,0.44909982]
[1757465141209,0.38606897,111370.0,111350.0,0.17959982]
[1757465141210,0.16097927,111360.0,111350.0,0.17959982]
[1757465141426,0.2026257,111360.0,111350.0,0.17959982]
[1757465141626,0.2047357,111360.0,111340.0,0.18861122]
[1757465141828,0.31102228,111350.0,111340.0,0.18861122]
[1757465142034,0.32779543,111350.0,111340.0,0.18861122]
[1757465143655,0.32979543,111350.0,111340.0,0.18961122]
[1757465144529,0.33179543,111350.0,111340.0,0.18961122]
[1757465146259,0.35878097,111350.0,111340.0,0.18961122]
[1757465153376,0.35575097,111350.0,111340.0,0.18961122]
[1757465153796,0.35878097,111350.0,111340.0,0.18961122]
[1757465158801,0.20854097,111350.0,111340.0,0.18961122]
[1757465159003,0.35878097,111350.0,111340.0,0.18961122]
[1757465159649,0.20854097,111350.0,111340.0,0.18961122]
[1757465159870,0.3587596,111350.0,111340.0,0.18961122]
[1757465166462,0.3587596,111350.0,111340.0,0.18961145]
[1757465166676,0.2085196,111350.0,111340.0,0.18961145]
[1757465166882,0.3587196,111350.0,111340.0,0.18961145]
[1757465167229,0.6987196,111350.0,111340.0,0.001]
[1757465167438,0.71804904,111350.0,111340.0,0.001]
[1757465168503,0.56784904,111350.0,111340.0,0.001]
[1757465168709,0.71804904,111350.0,111340.0,0.001]
[1757465169818,0.71806181,111350.0,111340.0,0.001]
[1757465177337,0.71806226,111350.0,111340.0,0.001]
[1757465180111,0.74150301,111350.0,111340.0,0.001]
[1757465180546,0.79150301,111350.0,111340.0,0.001]
[1757465180747,1.12027901,111350.0,111340.0,0.001]
[1757465181065,1.1119001,111350.0,111340.0,0.001]
[1757465181295,1.1099001,111350.0,111340.0,0.001]
[1757465181649,0.34,111340.0,111320.0,0.18864433]
[1757465181880,0.26609742,111330.0,111320.0,0.18864433]
[1757465182085,0.24313351,111330.0,111320.0,0.18864433]
[1757465182287,0.39333351,111330.0,111320.0,0.18864433]
[1757465183060,0.42032536,111330.0,111320.0,0.18864433]
[1757465183465,0.42232536,111330.0,111320.0,0.18864433]
[1757465185585,0.43120442,111330.0,111320.0,0.18864433]
[1757465187226,0.43420442,111330.0,111320.0,0.18964433]
[1757465193431,0.28400442,111330.0,111320.0,0.18964433]
[1757465193637,0.43420442,111330.0,111320.0,0.18964433]
[1757465197128,0.16304442,111330.0,111320.0,0.19480433]
[1757465197326,0.31324442,111330.0,111320.0,0.19179433]
[1757465197526,0.31324442,111330.0,111320.0,0.18964433]
[1757465201456,0.31320442,111330.0,111320.0,0.19472433]
[1757465201663,0.31320442,111330.0,111320.0,0.18964433]
[1757465203703,0.31321349,111330.0,111320.0,0.18964433]
[1757465204712,0.31385941,111330.0,111320.0,0.18964433]
[1757465207533,0.16369941,111330.0,111320.0,0.18964433]
[1757465207926,0.24232556,111330.0,111320.0,0.53729815]
[1757465208387,0.21533371,111330.0,111320.0,0.53729815]
[1757465208600,0.06517371,111330.0,111320.0,0.53729815]
[1757465209632,0.21533371,111330.0,111320.0,0.53729815]
[1757465216513,0.21532983,111330.0,111320.0,0.53729815]
[1757465219252,0.21532983,111330.0,111320.0,0.28664032]
[1757465219454,0.21738983,111330.0,111320.0,0.28156032]
[1757465219662,0.22054983,111330.0,111320.0,0.28156032]
[1757465220570,0.33330983,111330.0,111320.0,0.28156032]
[1757465223050,0.33014983,111330.0,111320.0,0.28156032]
[1757465223256,0.21738983,111330.0,111320.0,0.28156032]
[1757465225615,0.21532983,111330.0,111320.0,0.28664032]
[1757465228632,0.21532365,111330.0,111320.0,0.28664032]
[1757465230307,0.21738365,111330.0,111320.0,0.28664032]
[1757465231904,0.21734365,111330.0,111320.0,0.28664032]
[1757465232550,0.21734894,111330.0,111320.0,0.28664032]
[1757465233116,0.06722894,111330.0,111320.0,0.28664032]
[1757465233337,0.21734894,111330.0,111320.0,0.28664032]
[1757465233753,0.21734894,111330.0,111320.0,0.28156032]
[1757465233930,0.34437894,111330.0,111320.0,0.09291599]
[1757465234108,0.34437894,111330.0,111320.0,0.001]
[1757465234519,0.40503991,111330.0,111320.0,0.001]
[1757465235331,0.43203177,111330.0,111320.0,0.001]
[1757465237963,0.28191177,111330.0,111320.0,0.001]
[1757465238181,0.43203177,111330.0,111320.0,0.001]
[1757465240493,0.45547464,111330.0,111320.0,0.001]
[1757465241594,0.45231464,111330.0,111320.0,0.001]
[1757465241798,0.32844464,111330.0,111320.0,0.001]
[1757465241995,0.17832464,111330.0,111320.0,0.001]
[1757465242201,0.32840464,111330.0,111320.0,0.18568223]
[1757465242927,0.32840464,111330.0,111320.0,0.18263223]
[1757465243162,0.33678735,111330.0,111320.0,0.18263223]
[1757465243376,0.32840464,111330.0,111320.0,0.18263223]
[1757465244188,0.33678736,111330.0,111320.0,0.18263223]
[1757465245572,0.32840464,111330.0,111320.0,0.18263223]
[1757465246191,0.32840464,111330.0,111320.0,0.18066223]
[1757465246396,0.32840464,111330.0,111320.0,0.001]
[1757465248389,0.17832464,111330.0,111320.0,0.001]
[1757465248597,0.32840464,111330.0,111320.0,0.18066223]
[1757465249050,0.25936464,111330.0,111320.0,0.18066223]
[1757465253835,0.25936464,111330.0,111320.0,0.001]
[1757465254044,0.23237278,111330.0,111320.0,0.001]
[1757465254218,0.25936464,111330.0,111320.0,0.001]
[1757465254417,0.23237278,111330.0,111320.0,0.001]
[1757465254773,0.241424,111330.0,111320.0,0.001]
[1757465255354,0.241424,111330.0,111320.0,0.18066223]
[1757465258613,0.310464,111330.0,111320.0,0.18066223]
[1757465262691,0.30417743,111330.0,111320.0,0.18066223]
[1757465262890,0.31046967,111330.0,111320.0,0.18066223]
[1757465263755,0.16038967,111330.0,111320.0,0.18066223]
[1757465264016,0.31886202,111330.0,111320.0,0.18559223]
[1757465264326,0.31046967,111330.0,111320.0,0.18559223]
[1757465264953,0.31046967,111330.0,111320.0,0.18066223]
[1757465268273,0.16038967,111330.0,111320.0,0.18066223]
[1757465268482,0.31042967,111330.0,111320.0,0.18066223]
[1757465269775,0.16038967,111330.0,111320.0,0.18066223]
[1757465269955,0.31042967,111330.0,111320.0,0.18066223]
[1757465270261,0.31512387,111330.0,111320.0,0.18066223]
[1757465271021,0.16508387,111330.0,111320.0,0.18066223]
[1757465271229,0.31512387,111330.0,111320.0,0.18066223]
[1757465273659,0.31512387,111330.0,111320.0,0.18263223]
[1757465273962,0.31512387,111330.0,111320.0,0.18066223]
[1757465279712,0.31512387,111330.0,111320.0,0.18559223]
[1757465279918,0.25447788,111330.0,111320.0,0.18559223]
[1757465280803,0.29106134,111330.0,111320.0,0.18559223]
[1757465280954,0.29106421,111330.0,111320.0,0.18559223]
[1757465281982,0.29106421,111330.0,111320.0,0.18066223]
[1757465283586,0.29102421,111330.0,111320.0,0.18066223]
[1757465284271,0.14102421,111330.0,111320.0,0.18066223]
[1757465284470,0.29102263,111330.0,111320.0,0.18066223]
[1757465285026,0.14102263,111330.0,111320.0,0.18066223]
[1757465285405,0.29102263,111330.0,111320.0,0.18066223]
[1757465285745,0.28197141,111330.0,111320.0,0.18066223]
[1757465287463,0.28509141,111330.0,111320.0,0.001]
[1757465287646,0.28197141,111330.0,111320.0,0.001]
[1757465290272,0.91419462,111330.0,111320.0,0.001]
[1757465290471,0.9335021,111330.0,111320.0,0.001]
[1757465291590,1.02541809,111330.0,111320.0,0.001]
[1757465291805,1.05241347,111330.0,111320.0,0.001]
[1757465294380,6.10241347,111330.0,111320.0,0.001]
[1757465295428,6.10041347,111330.0,111320.0,0.001]
[1757465295635,0.51966794,111320.0,111290.0,0.18861779]
[1757465295829,0.00197,111300.0,111290.0,0.19382714]
[1757465296059,0.08430753,111300.0,111290.0,0.19382714]
[1757465296262,0.09131105,111300.0,111290.0,0.19382714]
[1757465296649,0.09131105,111300.0,111290.0,0.18875714]
[1757465297254,0.09131105,111300.0,111290.0,0.19076714]
[1757465297427,0.09131105,111300.0,111290.0,0.19382714]
[1757465298598,0.09131105,111300.0,111290.0,0.19482714]
[1757465300010,0.09231105,111300.0,111290.0,0.19582714]
[1757465300843,0.11575894,111300.0,111290.0,0.19582714]
[1757465309285,0.11378894,111300.0,111290.0,0.19582714]
[1757465310070,0.11575894,111300.0,111290.0,0.19582714]
[1757465313541,0.11575894,111300.0,111290.0,0.19075714]
[1757465314035,0.11378894,111300.0,111290.0,0.19582714]
[1757465314342,0.11575894,111300.0,111290.0,0.19582714]
[1757465315727,0.11575894,111300.0,111290.0,0.19075714]
[1757465317109,0.11575894,111300.0,111290.0,0.19582714]
[1757465317306,0.11575894,111300.0,111290.0,0.19075714]
[1757465320172,0.14275643,111300.0,111290.0,0.19582714]
[1757465321316,0.14275643,111300.0,111290.0,0.19075714]
[1757465321473,0.29078643,111300.0,111290.0,0.19572714]
[1757465321857,0.29287643,111300.0,111290.0,0.19572714]
[1757465322038,0.14078643,111300.0,111290.0,0.19572714]
[1757465322262,0.29078221,111300.0,111290.0,0.19572714]
[1757465326838,0.14078221,111300.0,111290.0,0.19572714]
[1757465327013,0.29078221,111300.0,111290.0,0.19572714]
[1757465328599,0.29287221,111300.0,111290.0,0.19572714]
[1757465328803,0.29078221,111300.0,111290.0,0.19572714]
[1757465329440,0.29287221,111300.0,111290.0,0.19572714]
[1757465330049,0.29078221,111300.0,111290.0,0.19572714]
[1757465330244,0.26378472,111300.0,111290.0,0.19572714]
[1757465332010,0.26587472,111300.0,111290.0,0.19572714]
[1757465332213,0.26378472,111300.0,111290.0,0.19572714]
[1757465332974,0.26587472,111300.0,111290.0,0.19572714]
[1757465333910,0.26378603,111300.0,111290.0,0.19572714]
[1757465334233,0.26587603,111300.0,111290.0,0.19572714]
[1757465335420,0.44557054,111300.0,111290.0,0.00213935]
[1757465335623,0.90890054,111300.0,111290.0,0.00213935]
[1757465335827,0.92822917,111300.0,111290.0,0.00213935]
[1757465336212,0.95522911,111300.0,111290.0,0.00113935]
[1757465336618,0.95622911,111300.0,111290.0,0.00113935]
[1757465337267,0.95522911,111300.0,111290.0,0.00113935]
[1757465338276,0.95422911,111300.0,111290.0,0.00013935]
[1757465338629,0.95522911,111300.0,111290.0,0.00013935]
[1757465339261,0.95622911,111300.0,111290.0,0.00113935]
[1757465339453,0.95522911,111300.0,111290.0,0.00013935]
[1757465339960,0.95622911,111300.0,111290.0,0.00113935]
[1757465343671,1.0481451,111300.0,111290.0,0.00113935]
[1757465345632,1.0481451,111300.0,111270.0,0.18180905]
[1757465345633,0.34,111290.0,111270.0,0.18180905]
[1757465345881,0.30413315,111280.0,111270.0,0.18682522]
[1757465346103,0.3104249,111280.0,111270.0,0.18682522]
[1757465346537,0.33742747,111280.0,111270.0,0.18682522]
[1757465347673,0.33113572,111280.0,111270.0,0.18682522]
[1757465347811,0.33741687,111280.0,111270.0,0.18682522]
[1757465348029,0.33841687,111280.0,111270.0,0.18982522]
[1757465348820,0.33841687,111280.0,111270.0,0.19082522]
[1757465350793,0.52112368,111280.0,111270.0,0.00404617]
[1757465351023,0.98605368,111280.0,111270.0,0.00404617]
[1757465351283,1.00533378,111280.0,111270.0,0.00404617]
[1757465351735,1.00533378,111280.0,111270.0,0.00104617]
[1757465352010,1.00461378,111280.0,111270.0,4.617e-05]
[1757465352212,0.83609368,111280.0,111270.0,0.00104617]
[1757465352432,0.98633368,111280.0,111270.0,0.00104617]
[1757465352651,0.98533368,111280.0,111270.0,4.617e-05]
[1757465353118,0.98633368,111280.0,111270.0,0.00104617]
[1757465353964,0.98633368,111280.0,111270.0,0.00051571]
[1757465354408,0.98633368,111280.0,111250.0,0.38583157]
[1757465354619,0.08089718,111270.0,111250.0,0.38597099]
[1757465354853,0.1504,111260.0,111250.0,0.38597099]
[1757465355076,0.24179138,111260.0,111250.0,0.38801099]
[1757465355253,0.24179138,111260.0,111250.0,0.19397679]
[1757465355678,0.24179138,111260.0,111250.0,0.38801099]
[1757465355887,0.26879796,111260.0,111250.0,0.38801099]
[1757465356310,0.26879796,111260.0,111250.0,0.39201099]
[1757465356996,0.26879796,111260.0,111250.0,0.38801099]
[1757465357456,0.26879796,111260.0,111250.0,0.39001099]
[1757465357798,0.26979796,111260.0,111250.0,0.39501099]
[1757465359275,0.27861578,111260.0,111250.0,0.39501099]
[1757465361058,0.30207157,111260.0,111250.0,0.39501099]
[1757465363652,0.14285375,111260.0,111250.0,0.39501099]
[1757465363851,0.29317375,111260.0,111250.0,0.34001099]
[1757465364869,0.29327375,111260.0,111250.0,0.34001099]
[1757465365737,0.29540375,111260.0,111250.0,0.34001099]
[1757465365924,0.30423441,111260.0,111250.0,0.34001099]
[1757465366734,0.30210441,111260.0,111250.0,0.34001099]
[1757465370350,0.30210441,111260.0,111250.0,0.14597679]
[1757465370484,0.30210441,111260.0,111250.0,0.34001099]
[1757465375017,0.15178441,111260.0,111250.0,0.34001099]
[1757465375231,0.30202441,111260.0,111250.0,0.34001099]
[1757465378113,0.30415441,111260.0,111250.0,0.14294679]
[1757465378321,0.30415441,111260.0,111250.0,0.14597679]
[1757465378535,0.30415441,111260.0,111250.0,0.34001099]
[1757465378738,0.30202441,111260.0,111250.0,0.34001099]
[1757465379079,0.30202441,111260.0,111250.0,0.14597679]
[1757465379281,0.30202441,111260.0,111250.0,0.34001099]
[1757465379886,0.27501783,111260.0,111250.0,0.34001099]
[1757465380691,0.27501783,111260.0,111250.0,0.14597679]
[1757465380888,0.27501783,111260.0,111250.0,0.34001099]
[1757465381863,0.27501783,111260.0,111250.0,0.14597679]
[1757465381990,0.27501783,111260.0,111250.0,0.34001099]
[1757465383467,0.27501783,111260.0,111250.0,0.14597679]
[1757465383706,0.1899076,111260.0,111250.0,0.34001099]
[1757465385705,0.1899076,111260.0,111250.0,0.14597679]
[1757465385904,0.1899076,111260.0,111250.0,0.34001099]
[1757465386532,0.20666718,111260.0,111250.0,0.34001099]
[1757465386923,0.20865718,111260.0,111250.0,0.34001099]
[1757465387133,0.05841718,111260.0,111250.0,0.34001099]
[1757465387269,0.20905718,111260.0,111250.0,0.34001099]
[1757465387728,0.20905718,111260.0,111250.0,0.14090679]
[1757465388510,0.20905718,111260.0,111250.0,0.14622679]
[1757465389085,0.23606392,111260.0,111250.0,0.14622679]
[1757465389259,0.2360595,111260.0,111250.0,0.14622679]
[1757465389560,0.22515884,111260.0,111250.0,0.34026099]
[1757465390567,0.07459884,111260.0,111250.0,0.34026099]
[1757465390852,0.22511884,111260.0,111250.0,0.34026099]
[1757465391689,0.22511884,111260.0,111250.0,0.14622679]
[1757465392076,0.22511884,111260.0,111250.0,0.34026099]
[1757465392273,0.22511884,111260.0,111250.0,0.14622679]
[1757465392434,0.22511884,111260.0,111250.0,0.34026099]
[1757465393973,0.22511884,111260.0,111250.0,0.14622679]
[1757465394185,0.22511884,111260.0,111250.0,0.34026099]
[1757465395434,0.29419884,111260.0,111250.0,0.34026099]
[1757465400444,0.29419884,111260.0,111250.0,0.14622679]
[1757465403192,0.29419836,111260.0,111250.0,0.14622679]
[1757465404032,0.26719162,111260.0,111250.0,0.14622679]
[1757465404848,0.26918162,111260.0,111250.0,0.14622679]
[1757465405058,0.26719162,111260.0,111250.0,0.14622679]
[1757465406284,0.26918162,111260.0,111250.0,0.14622679]
[1757465406696,0.26719162,111260.0,111250.0,0.14622679]
[1757465407110,0.26918162,111260.0,111250.0,0.14622679]
[1757465407321,0.26719162,111260.0,111250.0,0.14622679]
[1757465407524,0.26918162,111260.0,111250.0,0.14622679]
[1757465408069,0.26719162,111260.0,111250.0,0.14622679]
[1757465417228,0.26719432,111260.0,111250.0,0.14622679]
[1757465419658,0.26916432,111260.0,111250.0,0.14622679]
[1757465420644,0.27385852,111260.0,111250.0,0.14622679]
[1757465422709,0.27385883,111260.0,111250.0,0.14622679]
[1757465423662,0.27385883,111260.0,111250.0,0.1922347]
[1757465423900,0.27385883,111260.0,111250.0,0.1869147]
[1757465424093,0.27385894,111260.0,111250.0,0.1869147]
[1757465425813,0.27385894,111260.0,111250.0,0.1890547]
[1757465425814,0.2571057,111260.0,111250.0,0.1890547]
[1757465426040,0.27386774,111260.0,111250.0,0.1890547]
[1757465428646,0.27386774,111260.0,111250.0,0.1922147]
[1757465432447,0.27189774,111260.0,111250.0,0.1922147]
[1757465434166,0.27386774,111260.0,111250.0,0.1922147]
[1757465436565,0.27386774,111260.0,111250.0,0.01243942]
[1757465436821,0.27386774,111260.0,111250.0,0.00713942]
[1757465437193,0.41744604,111260.0,111250.0,0.00713942]
[1757465439560,0.59720516,111260.0,111250.0,0.00513942]
[1757465439701,1.01907896,111260.0,111250.0,0.00513942]
[1757465439907,1.01907896,111260.0,111250.0,0.00613942]
[1757465440146,0.95651488,111260.0,111250.0,0.00613942]
[1757465440946,0.9565024,111260.0,111250.0,0.00513942]
[1757465441121,1.04841839,111260.0,111250.0,0.00513942]
[1757465441495,1.04741839,111260.0,111250.0,0.00013942]
[1757465442450,1.09841839,111260.0,111250.0,0.00513942]
[1757465442649,1.22246161,111260.0,111250.0,0.00513942]
[1757465442856,1.22346161,111260.0,111250.0,0.00513942]
[1757465443064,1.22246161,111260.0,111250.0,0.00013942]
[1757465443464,1.07194161,111260.0,111250.0,0.00013942]
[1757465443663,1.22242161,111260.0,111250.0,0.00013942]
[1757465445197,0.54490186,111250.0,111240.0,0.0002]
[1757465445409,1.08958802,111240.0,111230.0,0.0057058]
[1757465445633,1.54609143,111240.0,111230.0,0.0057058]
[1757465445836,1.52828163,111240.0,111230.0,0.0057058]
[1757465446009,1.50886085,111240.0,111230.0,0.0057058]
[1757465446336,1.72653558,111240.0,111230.0,0.0057058]
[1757465446680,1.73122978,111240.0,111230.0,0.0057058]
[1757465447258,1.70213958,111240.0,111230.0,0.0057058]
[1757465448233,1.61022359,111240.0,111230.0,0.0057058]
[1757465448527,1.45974359,111240.0,111230.0,0.00528834]
[1757465448724,1.61026359,111240.0,111230.0,0.00487376]
[1757465448931,1.61026359,111240.0,111230.0,0.00445908]
[1757465449360,1.65053469,111240.0,111230.0,0.00404805]
[1757465449605,5.04993469,111240.0,111230.0,0.00363804]
[1757465449743,5.04993469,111240.0,111230.0,0.00322759]
[1757465449965,5.05193469,111240.0,111230.0,0.00422759]
[1757465450168,5.05193469,111240.0,111230.0,0.00381871]
[1757465450365,5.05193469,111240.0,111230.0,0.00340998]
[1757465450786,5.05193469,111240.0,111230.0,0.00300483]
[1757465450975,5.05193469,111240.0,111230.0,0.00260165]
[1757465451169,4.90141469,111240.0,111230.0,0.00219886]
[1757465451376,1.60721469,111240.0,111230.0,0.00219886]
[1757465451576,1.60721469,111240.0,111230.0,0.00179853]
[1757465451775,1.25201469,111240.0,111230.0,0.00148853]
[1757465451983,1.11249469,111240.0,111230.0,0.00148853]
[1757465452229,1.08902511,111240.0,111230.0,0.00148853]
[1757465452385,1.27854511,111240.0,111230.0,0.00148853]
[1757465452591,1.42906511,111240.0,111230.0,0.00148853]
[1757465452949,1.43739099,111240.0,111230.0,0.00148853]
[1757465454942,1.28687099,111240.0,111230.0,0.00148853]
[1757465455147,1.41093861,111240.0,111230.0,0.00148853]
[1757465455322,1.46093861,111240.0,111230.0,0.00148853]
[1757465457416,1.41093861,111240.0,111230.0,0.00148853]
[1757465457627,1.46093861,111240.0,111230.0,0.00148853]
[1757465459614,1.31033861,111240.0,111230.0,0.00148853]
[1757465459874,1.46093892,111240.0,111230.0,0.00148853]
[1757465462333,1.15710738,111240.0,111230.0,0.00148853]
[1757465462550,1.19192738,111240.0,111230.0,0.00681853]
[1757465462754,1.19192738,111240.0,111230.0,0.00148853]
[1757465463174,1.19506738,111240.0,111230.0,0.00148853]
[1757465464021,6.76080738,111240.0,111230.0,0.00148853]
[1757465464466,6.76080738,111240.0,111230.0,0.00111497]
[1757465464694,6.76080738,111240.0,111230.0,0.00073985]
[1757465464899,6.76080738,111240.0,111230.0,0.00036586]
[1757465465120,0.1798076,111230.0,111220.0,0.00028]
[1757465465336,0.52267351,111230.0,111220.0,0.00028]
[1757465465605,0.54405323,111230.0,111220.0,0.00028]
[1757465465814,0.66303323,111230.0,111220.0,0.00028]
[1757465466016,0.66663645,111230.0,111220.0,0.00028]
[1757465466455,0.66763645,111230.0,111220.0,0.00028]
[1757465466882,1.04930818,111230.0,111220.0,0.00028]
[1757465467099,1.05030818,111230.0,111220.0,0.00128]
[1757465468418,1.08239838,111230.0,111220.0,0.00128]
[1757465470556,1.08235838,111230.0,111220.0,0.00128]
[1757465472299,1.13054922,111230.0,111220.0,0.00128]
[1757465473499,0.98002922,111230.0,111220.0,0.00128]
[1757465473644,1.13058922,111230.0,111220.0,0.00128]
[1757465474410,6.14849902,111230.0,111220.0,0.00128]
[1757465477262,6.14856439,111230.0,111220.0,0.00128]
[1757465479754,5.99800439,111230.0,111220.0,0.00128]
[1757465479930,6.14856439,111230.0,111220.0,0.00128]
[1757465481145,5.99800439,111230.0,111220.0,0.00128]
[1757465481359,6.14856439,111230.0,111220.0,0.00128]
[1757465483015,5.99800439,111230.0,111220.0,0.00128]
[1757465483437,2.07758439,111230.0,111220.0,0.00128]
[1757465483652,1.92702439,111230.0,111220.0,0.00128]
[1757465483838,1.92702439,111230.0,111220.0,0.00661]
[1757465483839,0.97761439,111230.0,111220.0,0.00661]
[1757465484083,0.98257439,111230.0,111220.0,0.00128]
[1757465484306,6.15747439,111230.0,111220.0,0.00128]
[1757465485887,6.00691439,111230.0,111220.0,0.00128]
[1757465486067,6.15871439,111230.0,111220.0,0.00128]
[1757465486455,6.15875439,111230.0,111220.0,0.00128]
[1757465489591,0.91982377,111220.0,111210.0,0.0002]
[1757465489817,6.44648693,111220.0,111210.0,0.0002]
[1757465490024,6.45144693,111220.0,111210.0,0.0002]
[1757465490845,6.45154693,111220.0,111210.0,0.00066485]
[1757465491278,6.45554693,111220.0,111210.0,0.00166485]
[1757465491484,6.45915053,111220.0,111210.0,0.00166485]
[1757465492179,6.30587053,111220.0,111210.0,0.00166485]
[1757465492383,6.45907053,111220.0,111210.0,0.00166485]
[1757465492810,6.46207053,111220.0,111210.0,0.00166485]
[1757465494980,6.46199053,111220.0,111210.0,0.00166485]
[1757465495347,6.30887053,111220.0,111210.0,0.00166485]
[1757465495669,6.46199053,111220.0,111210.0,0.00166485]
[1757465496106,6.30887053,111220.0,111210.0,0.00166485]
[1757465496308,6.46199053,111220.0,111210.0,0.00166485]
[1757465496495,6.30887053,111220.0,111210.0,0.00166485]
[1757465496897,6.46195053,111220.0,111210.0,0.00166485]
[1757465497358,6.3977001,111220.0,111210.0,0.00166485]
[1757465497560,6.3976601,111220.0,111210.0,0.00166485]
[1757465498795,6.2446201,111220.0,111210.0,0.00166485]
[1757465499147,6.44579548,111220.0,111210.0,0.00166485]
[1757465501093,6.44284548,111220.0,111210.0,0.00166485]
[1757465501535,6.44589548,111220.0,111210.0,0.00166485]
[1757465502161,1.11490548,111220.0,111210.0,0.00372485]
[1757465502489,1.09981312,111220.0,111210.0,0.00676485]
[1757465502713,1.10179312,111220.0,111210.0,0.00166485]
[1757465503569,1.10216471,111220.0,111210.0,0.00166485]
[1757465504092,1.10216471,111220.0,111210.0,0.00676485]
[1757465504458,1.05010471,111220.0,111210.0,0.00676485]
[1757465504663,0.71014471,111220.0,111210.0,0.12486485]
[1757465504884,1.01805169,111220.0,111210.0,0.00676485]
[1757465505198,0.67805169,111220.0,111210.0,0.00676485]
[1757465505405,1.01805169,111220.0,111210.0,0.00676485]
[1757465510077,1.02003169,111220.0,111210.0,0.00372485]
[1757465510309,1.02003169,111220.0,111210.0,0.00676485]
[1757465513407,1.01805169,111220.0,111210.0,0.00676485]
[1757465515498,1.04152247,111220.0,111210.0,0.00676485]
[1757465518710,1.041518,111220.0,111210.0,0.00676485]
[1757465518931,1.043498,111220.0,111210.0,0.00166485]
[1757465519159,4.137298,111220.0,111210.0,0.00166485]
[1757465520018,2.678398,111220.0,111210.0,0.00166485]
[1757465520439,2.545118,111220.0,111210.0,0.00166485]
[1757465520867,2.545118,111220.0,111210.0,0.00372485]
[1757465521080,1.110238,111220.0,111210.0,0.00676485]
[1757465521505,0.957718,111220.0,111210.0,0.00676485]
[1757465521766,1.110198,111220.0,111210.0,0.00676485]
[1757465522758,0.910198,111220.0,111210.0,0.00676485]
[1757465523086,0.757718,111220.0,111210.0,0.00676485]
[1757465523294,0.910198,111220.0,111210.0,0.00676485]
[1757465524745,0.91217463,111220.0,111210.0,0.00676485]
[1757465525707,0.91019463,111220.0,111210.0,0.00676485]
[1757465526407,0.91007463,111220.0,111210.0,0.00676485]
[1757465526761,0.91205463,111220.0,111210.0,0.00166485]
[1757465527721,0.91213463,111220.0,111210.0,0.00676485]
[1757465531762,0.91213463,111220.0,111210.0,0.00372485]
[1757465532013,0.91213463,111220.0,111210.0,0.00166485]
[1757465532759,1.03179463,111220.0,111210.0,0.00166485]
[1757465532963,1.16202303,111220.0,111210.0,0.00166485]
[1757465533610,3.78472303,111220.0,111210.0,0.00166485]
[1757465534215,1.91352303,111220.0,111210.0,0.00166485]
[1757465534439,1.88143001,111220.0,111210.0,0.00166485]
[1757465535053,1.83329463,111220.0,111210.0,0.00166485]
[1757465535256,1.8815184,111220.0,111210.0,0.00166485]
[1757465535487,1.8813184,111220.0,111210.0,0.00166485]
[1757465537840,1.7322184,111220.0,111210.0,0.00166485]
[1757465538180,1.7290684,111220.0,111210.0,0.00166485]
[1757465538588,1.7322184,111220.0,111210.0,0.00166485]
[1757465540609,1.2111384,111220.0,111210.0,0.00166485]
[1757465541919,1.3307984,111220.0,111210.0,0.00166485]
[1757465542069,1.1786784,111220.0,111210.0,0.00166485]
[1757465542406,1.3307584,111220.0,111210.0,0.00166485]
[1757465543012,1.3307184,111220.0,111210.0,0.00166485]
[1757465543364,1.3628494,111220.0,111210.0,0.00166485]
[1757465543564,1.2108094,111220.0,111210.0,0.00166485]
[1757465543766,1.3628494,111220.0,111210.0,0.00166485]
[1757465543991,2.1298894,111220.0,111210.0,0.00166485]
[1757465544541,2.3491194,111220.0,111210.0,0.00166485]
[1757465544786,2.3490794,111220.0,111210.0,0.00166485]
[1757465545390,2.4655894,111220.0,111210.0,0.00166485]
[1757465548435,2.46555682,111220.0,111210.0,0.00166485]
[1757465551614,2.31355682,111220.0,111210.0,0.00166485]
[1757465551812,2.46224682,111220.0,111210.0,0.00166485]
[1757465552028,2.3104093,111220.0,111210.0,0.00166485]
[1757465552230,2.3457393,111220.0,111210.0,0.00166485]
[1757465552440,2.1938993,111220.0,111210.0,0.00166485]
[1757465552700,2.3456993,111220.0,111210.0,0.00166485]
[1757465553315,2.3135683,111220.0,111210.0,0.00166485]
[1757465554356,2.1617683,111220.0,111210.0,0.00166485]
[1757465554564,2.3135683,111220.0,111210.0,0.00166485]
[1757465555571,2.3135283,111220.0,111210.0,0.00166485]
[1757465556023,2.3166783,111220.0,111210.0,0.00166485]
[1757465556241,2.3135283,111220.0,111210.0,0.00166485]
[1757465558555,1.0719883,111220.0,111210.0,0.00671485]
[1757465558769,0.81754473,111220.0,111210.0,0.12214485]
[1757465558963,1.15754473,111220.0,111210.0,0.18438933]
[1757465559213,1.15754473,111220.0,111210.0,0.06895933]
[1757465560386,1.12540626,111220.0,111210.0,0.06895933]
[1757465561262,1.15754473,111220.0,111210.0,0.06895933]
[1757465561666,1.12540626,111220.0,111210.0,0.06895933]
[1757465562115,1.15754473,111220.0,111210.0,0.00671485]